bitfinex/quotes_ETHUSD_20220731
["timestamp","ask_amount","ask_price","bid_price","bid_amount"]
[1659292539392,7.0,1696.3,1695.5,2.69206285]
[1659292539675,0.05,1696.4,1696.1,0.2]
[1659292539825,0.4405,1696.9,1695.5,0.2947157]
[1659292539826,0.05,1696.7,1695.5,0.2947157]
[1659292540027,0.05,1696.5,1696.0,0.2]
[1659292540265,6.138,1696.9,1696.3,0.2]
[1659292540266,0.05,1696.7,1696.3,0.2]
[1659292540464,0.05,1696.9,1696.7,0.2]
[1659292540636,6.5783,1697.3,1696.6,0.2]
[1659292540637,6.188,1697.3,1696.8,0.2]
[1659292540842,6.138,1697.3,1696.8,0.2]
[1659292541230,6.138,1697.3,1697.0,0.2]
[1659292541465,6.138,1697.4,1696.9,0.3]
[1659292541672,0.4403,1697.5,1696.6,0.3]
[1659292541879,0.4403,1697.5,1696.6,3.19804672]
[1659292541880,0.41606504,1697.5,1696.6,3.19804672]
[1659292542079,0.85636504,1697.5,1696.4,4.47282]
[1659292542236,0.05,1697.4,1696.3,3.0]
[1659292542430,2.30922269,1697.6,1696.3,3.0]
[1659292542431,6.138,1697.2,1696.3,0.2945765]
[1659292542670,0.05,1697.2,1696.5,0.2]
[1659292542940,0.4403,1697.3,1696.6,0.02510861]
[1659292542941,0.05,1697.3,1696.6,0.02510861]
[1659292543291,0.4404,1697.2,1696.4,0.05]
[1659292543580,6.138,1697.1,1696.3,0.05]
[1659292543759,0.05,1697.1,1696.2,0.05]
[1659292543968,0.05,1697.1,1696.7,0.2]
[1659292544152,0.05,1697.1,1696.5,0.2]
[1659292544153,0.05,1697.4,1697.0,3.0]
[1659292544333,0.05,1697.7,1697.1,2.89804672]
[1659292544537,0.05,1697.9,1697.1,3.69248862]
[1659292544781,0.05,1697.9,1697.2,6.22314646]
[1659292545074,0.05,1698.0,1697.4,0.4]
[1659292545278,0.05,1698.2,1697.4,0.3]
[1659292545463,0.05,1698.3,1697.5,0.02509531]
[1659292545671,8.90560497,1698.6,1697.5,0.32509531]
[1659292545672,0.05,1698.4,1697.5,0.32509531]
[1659292545833,6.188,1698.4,1697.5,0.07509531]
[1659292546065,9.638,1698.2,1697.5,0.07509531]
[1659292546264,0.80616504,1698.1,1697.5,0.02509531]
[1659292546502,9.03604672,1698.0,1697.5,0.02509531]
[1659292546773,3.55,1698.2,1697.3,0.05]
[1659292546774,6.5782,1697.9,1697.3,0.05]
[1659292546930,6.5782,1697.9,1697.1,0.05]
[1659292546931,9.638,1697.6,1697.1,0.05]
[1659292547130,0.4403,1697.5,1696.9,0.05]
[1659292547346,6.138,1697.2,1696.7,0.05]
[1659292547549,6.138,1696.9,1696.5,0.05]
[1659292547757,6.138,1696.9,1696.2,0.05]
[1659292547758,9.03604672,1696.6,1696.2,0.05]
[1659292547940,9.03604672,1696.3,1695.1,0.29477]
[1659292548173,2.89804672,1695.8,1694.6,13.56263756]
[1659292548324,3.26411176,1695.7,1694.4,1.47451]
[1659292548524,3.26411176,1695.7,1694.5,2.77331086]
[1659292548788,0.4408,1695.6,1694.5,2.77331086]
[1659292548923,3.26411176,1695.7,1694.6,1.7692]
[1659292548924,0.36606504,1695.5,1694.6,1.7692]
[1659292549126,2.89804672,1695.2,1694.1,0.4412]
[1659292549328,2.89804672,1695.2,1693.8,7.7378]
[1659292549329,5.0,1695.0,1693.8,7.7378]
[1659292549530,2.89804672,1694.8,1693.9,0.29498]
[1659292549785,2.89804672,1694.5,1693.6,2.75803648]
[1659292549965,2.89804672,1694.4,1693.6,2.80803648]
[1659292550279,3.26411176,1694.3,1693.6,2.80803648]
[1659292550523,2.89804672,1694.2,1693.5,0.4913]
[1659292550678,2.89804672,1693.6,1693.0,0.29512]
[1659292550876,2.89804672,1693.6,1692.2,1.47566]
[1659292550877,2.89804672,1693.1,1692.2,0.2952749]
[1659292551125,2.89804672,1693.1,1691.8,0.46334952]
[1659292551126,2.94804672,1693.1,1692.7,0.2]
[1659292551276,0.05,1693.4,1692.3,0.2]
[1659292551475,0.4412,1694.0,1692.1,1.04217138]
[1659292551476,2.94804672,1693.3,1692.1,1.04217138]
[1659292551676,0.05,1693.1,1692.1,0.60047138]
[1659292551927,0.05,1693.0,1692.2,0.2952764]
[1659292552093,0.05,1693.0,1692.0,2.21817]
[1659292552094,0.36606504,1692.9,1692.0,1.77647]
[1659292552297,8.41606504,1692.9,1692.0,0.3]
[1659292552679,0.4415,1692.8,1692.0,0.3]
[1659292552883,0.36606504,1692.7,1692.0,0.3]
[1659292553090,0.4416,1692.6,1692.0,0.3]
[1659292553320,6.5796,1692.6,1692.0,0.3]
[1659292553522,6.5796,1692.6,1690.7,0.2]
[1659292553523,8.75915189,1692.4,1690.9,1.51069314]
[1659292553828,0.05,1692.1,1691.3,0.68085241]
[1659292553978,0.05,1692.1,1691.2,0.05]
[1659292554243,6.138,1691.9,1691.2,0.05]
[1659292554496,10.093,1692.0,1691.4,0.2]
[1659292554697,8.1171,1693.3,1691.6,1.43847179]
[1659292554698,6.37364129,1693.1,1691.6,1.43847179]
[1659292554878,3.5,1693.3,1691.9,0.05]
[1659292555192,3.6004,1693.2,1692.1,0.05]
[1659292555389,3.6004,1693.2,1691.7,0.7418]
[1659292555390,6.138,1693.1,1692.2,0.05]
[1659292555704,0.1004,1693.0,1692.2,0.05]
[1659292555988,0.2,1692.3,1690.6,1.1388097]
[1659292556193,0.2,1692.3,1690.7,0.4421]
[1659292556391,0.2,1692.3,1690.7,0.99296443]
[1659292556544,0.2,1691.6,1690.7,0.60086443]
[1659292556744,0.2,1691.6,1690.6,1.1388097]
[1659292556745,6.138,1691.7,1690.6,1.1388097]
[1659292556988,3.9,1692.1,1690.1,3.0]
[1659292556989,6.138,1690.7,1690.1,3.0]
[1659292557149,0.36606504,1690.7,1690.1,3.0]
[1659292557346,0.36606504,1690.7,1690.1,0.4422]
[1659292557593,0.05,1690.9,1690.2,8.0]
[1659292557746,0.05,1691.0,1690.3,0.2922]
[1659292557972,0.41076294,1691.3,1690.3,0.2922]
[1659292558220,0.2,1691.6,1690.3,0.05]
[1659292558221,0.41076294,1691.6,1690.3,0.05]
[1659292558380,8.8213767,1692.1,1690.6,0.2]
[1659292558583,0.41076294,1691.9,1690.9,0.05]
[1659292558788,0.2,1691.4,1690.9,0.062]
[1659292559020,6.138,1691.7,1690.9,0.062]
[1659292559021,0.41076294,1691.1,1690.9,0.012]
[1659292559382,3.5,1691.6,1690.9,0.012]
[1659292559612,6.138,1691.7,1690.9,0.012]
[1659292559785,11.7511,1692.5,1691.1,0.2]
[1659292559983,11.7511,1692.5,1691.3,0.05]
[1659292559984,3.5,1692.2,1691.3,0.05]
[1659292560212,26.42106919,1693.4,1691.3,0.05]
[1659292560213,3.04788388,1692.0,1691.3,0.05]
[1659292560382,0.60093524,1692.5,1691.3,0.34471435]
[1659292560578,0.1499,1692.4,1691.4,0.05]
[1659292560780,16.32663759,1692.8,1691.4,0.05]
[1659292560781,2.97573772,1693.0,1691.7,0.2]
[1659292560977,2.78445644,1692.6,1691.9,0.05]
[1659292561274,3.5,1692.5,1691.9,0.34471435]
[1659292561475,0.15,1692.4,1691.9,0.34471435]
[1659292561711,0.2,1692.6,1692.0,0.2]
[1659292561908,2.74525201,1692.9,1692.0,0.2]
[1659292561909,0.05,1692.7,1692.0,0.1]
[1659292562214,7.55,1692.8,1692.1,0.64471435]
[1659292562432,7.5,1692.8,1692.1,0.64471435]
[1659292562630,6.138,1692.7,1692.1,0.64471435]
[1659292562788,0.05,1692.9,1690.9,0.012]
[1659292562789,0.3,1691.4,1690.9,0.012]
[1659292562985,0.05,1691.6,1690.9,0.012]
[1659292563322,2.73342628,1691.3,1690.9,0.012]
[1659292563476,2.73342628,1691.3,1689.7,0.17949794]
[1659292563477,2.83342628,1691.3,1690.3,0.4422]
[1659292563676,3.6,1691.1,1690.0,0.60100967]
[1659292563905,3.6,1691.1,1689.5,0.21826]
[1659292563906,0.05,1691.0,1690.1,0.1]
[1659292564124,0.05,1691.0,1689.7,7.9423]
[1659292564125,0.05,1691.0,1690.6,0.1]
[1659292564321,2.60151067,1691.4,1690.7,0.02589319]
[1659292564322,0.05,1691.2,1690.7,0.02589319]
[1659292564517,2.65151067,1691.4,1690.7,0.02589319]
[1659292564828,0.05,1691.5,1691.1,0.1]
[1659292565120,0.05,1691.7,1690.8,0.05]
[1659292565504,2.89804672,1691.2,1690.8,0.05]
[1659292565703,2.89804672,1691.1,1690.7,0.02589319]
[1659292565942,2.89804672,1691.1,1690.4,0.05]
[1659292566103,2.89804672,1691.0,1690.3,0.05]
[1659292566302,3.24276107,1691.0,1690.3,0.02589931]
[1659292566533,2.89804672,1691.0,1690.3,0.02589931]
[1659292566734,6.138,1690.5,1689.9,0.60109637]
[1659292566951,6.138,1690.5,1689.4,0.11982839]
[1659292566952,0.78681435,1690.4,1689.4,0.11982839]
[1659292567170,3.7,1690.1,1689.4,0.11982839]
[1659292567309,0.2,1689.3,1689.0,0.3]
[1659292567511,8.0,1689.5,1689.0,0.05]
[1659292567723,0.4,1689.1,1689.0,0.05]
[1659292568035,0.2,1689.0,1688.6,0.44415]
[1659292568238,3.5,1688.8,1688.6,0.26662217]
[1659292568412,0.05,1689.1,1688.6,0.26662217]
[1659292568607,0.70493545,1689.7,1688.7,15.45]
[1659292568807,28.10116919,1690.5,1688.7,15.45]
[1659292568808,11.83,1690.9,1688.8,11.22686208]
[1659292569058,11.83,1690.9,1689.4,0.05]
[1659292569059,0.2,1690.7,1689.4,0.05]
[1659292569224,12.03,1690.9,1689.6,0.05]
[1659292569426,0.2,1690.4,1689.8,0.05]
[1659292569627,0.2,1690.4,1689.6,0.05]
[1659292569809,0.2,1690.1,1689.5,0.3457574]
[1659292570012,0.2,1690.1,1689.5,0.78305882]
[1659292570209,2.99929286,1690.6,1689.3,0.05]
[1659292570210,2.73724045,1689.8,1689.3,0.05]
[1659292570441,2.86360892,1690.3,1689.1,0.05]
[1659292570640,2.86360892,1690.3,1689.2,0.05]
[1659292570842,17.968,1690.9,1689.3,0.17598436]
[1659292570843,11.83,1690.9,1689.3,0.17598436]
[1659292571026,2.61817159,1690.5,1689.4,0.4424]
[1659292571211,11.83,1690.9,1689.8,1.0]
[1659292571212,14.43466313,1690.9,1689.8,1.0]
[1659292571435,2.72074709,1690.2,1689.5,0.59223729]
[1659292571637,3.09136075,1690.2,1689.5,0.59223729]
[1659292571860,3.09136075,1690.2,1689.4,0.68789215]
[1659292571861,3.09136075,1690.2,1689.4,0.05]
[1659292572212,3.09136075,1690.2,1689.5,0.5915317]
[1659292572213,0.37061366,1690.2,1689.5,0.5915317]
[1659292572414,3.25368933,1691.2,1689.9,7.5]
[1659292572654,0.2,1692.0,1689.9,7.5]
[1659292572655,0.4418,1691.8,1690.1,0.05]
[1659292572813,0.2,1691.3,1690.5,0.05]
[1659292573029,0.2,1691.3,1690.4,0.7921]
[1659292573030,7.08458172,1691.2,1690.4,0.7921]
[1659292573227,3.5,1691.8,1690.4,0.7921]
[1659292573228,1.04268051,1692.2,1690.6,0.29558]
[1659292573427,2.82054002,1691.7,1690.9,0.05]
[1659292573655,2.82054002,1691.7,1690.8,0.05]
[1659292573656,0.81241366,1691.6,1690.8,0.05]
[1659292573867,0.81241366,1691.6,1690.7,0.05]
[1659292574032,8.1010069,1692.4,1690.8,0.442]
[1659292574033,0.4416,1692.3,1690.8,0.442]
[1659292574229,2.84298795,1691.8,1691.2,0.2954909]
[1659292574427,2.84298795,1691.8,1691.0,0.35]
[1659292574673,0.2,1691.6,1691.0,0.3]
[1659292574989,0.4415,1692.7,1691.1,1.9194]
[1659292575278,2.68405253,1692.3,1691.4,0.05]
[1659292575432,0.8414,1693.1,1691.6,0.2953927]
[1659292575647,2.72768599,1692.8,1691.9,1.52678]
[1659292575830,6.138,1692.6,1691.2,0.4419]
[1659292576031,0.2,1690.6,1689.3,0.007]
[1659292576278,16.686,1691.3,1689.3,0.007]
[1659292576279,0.05,1690.4,1689.3,0.007]
[1659292576431,0.05,1690.3,1689.3,0.007]
[1659292576631,0.05,1690.2,1689.4,0.29577]
[1659292576830,0.05,1690.3,1689.4,0.29577]
[1659292577077,0.05,1690.3,1689.6,0.29569]
[1659292577231,0.05,1690.4,1689.6,0.29569]
[1659292577644,8.4399,1692.0,1689.6,0.29569]
[1659292577645,0.3,1692.0,1690.7,2.1574239]
[1659292577959,0.3,1692.0,1691.6,0.6009]
[1659292578277,4.2,1691.7,1691.6,0.6009]
[1659292578499,0.2,1691.2,1690.6,2.3542239]
[1659292578641,6.138,1691.5,1691.0,0.76214509]
[1659292578944,6.138,1691.5,1689.6,5.9127]
[1659292578945,0.37061366,1691.4,1689.6,5.9127]
[1659292579149,0.37061366,1691.4,1690.0,1.8239738]
[1659292579361,0.05,1691.2,1690.0,1.8239738]
[1659292579565,0.2,1690.8,1690.1,0.05]
[1659292579781,0.2,1690.9,1690.0,0.05]
[1659292579782,0.37061366,1690.7,1690.0,0.05]
[1659292579957,0.37061366,1690.7,1689.5,7.9626]
[1659292579958,0.37061366,1690.7,1689.9,0.05]
[1659292580162,0.37061366,1690.7,1689.8,0.05]
[1659292580390,0.42061366,1690.7,1689.8,0.05]
[1659292580610,0.2,1690.2,1689.8,0.05]
[1659292580772,0.2,1690.0,1689.5,0.05]
[1659292581110,12.338,1689.2,1687.7,6.04685974]
[1659292581308,12.338,1689.2,1687.3,0.17515464]
[1659292581309,0.05,1688.9,1688.2,0.039]
[1659292581450,0.05,1689.0,1687.9,0.3428]
[1659292581659,0.05,1688.9,1688.0,1.7760203]
[1659292581858,0.05,1688.9,1688.1,0.4427]
[1659292582057,0.37061366,1688.8,1687.9,0.4428]
[1659292582257,0.42061366,1688.8,1688.0,3.5]
[1659292582491,2.2422,1690.1,1688.0,3.5]
[1659292582492,2.86522861,1689.3,1688.2,1.47983]
[1659292582705,0.4421,1690.4,1688.4,0.09]
[1659292582919,0.2,1689.3,1688.5,0.4426]
[1659292583073,0.05,1689.4,1688.6,1.47949]
[1659292583614,0.05,1689.4,1688.6,1.77538]
[1659292583755,0.05,1689.4,1688.8,1.47928]
[1659292583956,0.2,1689.4,1688.9,0.08900545]
[1659292584237,0.2,1689.4,1688.6,0.34589]
[1659292584238,6.5,1688.7,1687.9,0.92531147]
[1659292584431,6.138,1688.6,1687.8,0.6812524]
[1659292584557,0.4426,1688.5,1687.8,0.6812524]
[1659292584769,2.79859268,1689.1,1687.8,0.6812524]
[1659292584957,0.6424,1689.5,1687.8,0.5312524]
[1659292585158,0.2,1688.5,1687.8,0.5312524]
[1659292585393,0.2,1688.2,1687.8,0.5312524]
[1659292585573,0.11490476,1688.2,1687.8,0.5312524]
[1659292586089,3.24276107,1688.2,1687.8,0.5312524]
[1659292586408,2.89804672,1688.1,1687.8,0.5312524]
[1659292586558,6.5806,1688.7,1687.8,0.5312524]
[1659292586559,2.89804672,1688.2,1687.8,0.5312524]
[1659292586760,2.94804672,1688.4,1687.8,0.5312524]
[1659292586992,2.94804672,1688.4,1687.8,1.04267531]
[1659292587202,0.01198299,1688.7,1687.8,1.04267531]
[1659292587203,0.05,1688.5,1687.8,1.04267531]
[1659292587408,0.05,1688.5,1687.9,0.296011]
[1659292587409,3.35766583,1688.5,1687.9,0.296011]
[1659292587616,3.35766583,1688.5,1687.8,40.5312524]
[1659292587778,2.89804672,1688.4,1687.8,40.5312524]
[1659292588193,1.0,1688.2,1687.8,40.5312524]
[1659292588395,2.89804672,1688.1,1687.8,40.5312524]
[1659292588715,1.0,1688.2,1687.8,40.5312524]
[1659292589622,0.05,1688.4,1687.9,8.4428]
[1659292589895,0.01198299,1688.4,1687.9,8.29603]
[1659292590262,0.01198299,1688.4,1687.9,0.29603]
[1659292590461,0.01198299,1688.4,1688.0,0.3]
[1659292590662,0.01198299,1688.4,1687.9,4.11418099]
[1659292590910,0.01198299,1688.4,1687.9,4.01442]
[1659292591846,0.01198299,1688.4,1688.0,1.48002]
[1659292592193,0.01198299,1688.4,1688.0,4.37806672]
[1659292592395,0.01198299,1688.4,1688.0,1.48002]
[1659292592742,0.01198299,1688.4,1687.6,5.47516]
[1659292592743,6.138,1688.0,1687.3,0.60147098]
[1659292592927,7.05,1688.1,1687.2,0.13040353]
[1659292593108,0.01198299,1688.4,1687.3,8.0]
[1659292593636,0.01198299,1688.4,1687.4,0.05]
[1659292593945,0.01198299,1688.4,1687.4,1.82665]
[1659292594098,0.01198299,1688.4,1687.5,0.4429]
[1659292594446,11.4218,1689.7,1687.9,9.47999]
[1659292594447,8.1641,1689.7,1687.9,9.47999]
[1659292594597,0.2,1689.9,1688.3,2.82787709]
[1659292594943,0.4422,1690.0,1688.6,0.05]
[1659292594944,9.3381808,1689.7,1688.6,0.05]
[1659292595093,0.4424,1689.6,1688.7,0.05]
[1659292595628,0.2,1689.2,1687.8,1.92271]
[1659292595846,0.4425,1689.1,1688.0,1.4801]
[1659292596043,0.2,1688.9,1687.7,11.283]
[1659292596240,0.2,1688.7,1687.7,11.283]
[1659292596451,0.4426,1688.6,1687.7,0.2960866]
[1659292596656,0.4425,1689.1,1687.8,0.29605]
[1659292596859,6.138,1689.4,1687.8,0.29605]
[1659292596860,0.4424,1689.3,1687.8,0.29605]
[1659292597164,0.4,1689.2,1688.1,0.05]
[1659292597476,0.4,1689.1,1688.1,0.05]
[1659292597623,0.2,1689.7,1688.1,0.05]
[1659292597821,0.05,1689.4,1688.6,2.995882]
[1659292598060,0.05,1689.4,1689.2,3.7]
[1659292598061,11.841,1689.3,1689.2,3.7]
[1659292598271,11.841,1689.3,1689.2,4.97902]
[1659292598429,0.05,1689.7,1689.3,6.5]
[1659292598783,6.138,1691.0,1689.8,0.19]
[1659292598931,6.138,1691.0,1690.0,0.19]
[1659292599132,7.3291,1691.5,1690.3,0.19]
[1659292599349,3.5,1691.3,1690.4,0.05]
[1659292599668,6.138,1691.6,1690.6,0.19]
[1659292599868,0.01,1692.1,1690.8,0.19]
[1659292599869,6.438,1692.0,1690.8,0.19]
[1659292600021,6.438,1692.0,1691.1,0.19]
[1659292600022,11.825,1691.9,1691.1,0.19]
[1659292600426,0.0390791,1691.5,1691.1,0.19]
[1659292600672,0.0390791,1691.5,1691.0,0.5955278]
[1659292601182,0.0390791,1691.5,1691.4,0.19]
[1659292601470,0.0390791,1691.5,1691.2,0.4136]
[1659292601771,0.0390791,1691.5,1691.4,0.19]
[1659292601973,0.05,1691.9,1691.4,0.19]
[1659292602130,0.3,1692.0,1691.4,0.29539]
[1659292602325,0.75961911,1692.0,1691.5,0.2954025]
[1659292602529,0.3,1692.0,1691.9,0.19]
[1659292602749,0.3,1692.0,1691.6,0.19]
[1659292602981,0.3,1692.0,1691.6,6.38804672]
[1659292603227,0.01,1693.2,1691.7,8.5]
[1659292603403,3.5,1693.1,1692.0,0.24]
[1659292603718,6.138,1693.0,1692.1,0.05]
[1659292603947,3.5,1693.1,1692.1,0.05]
[1659292604411,11.93960793,1693.4,1692.6,0.16394609]
[1659292604412,11.0,1693.4,1692.6,0.16394609]
[1659292604628,11.0,1693.4,1692.5,0.05]
[1659292604629,0.34567302,1693.3,1692.5,0.05]
[1659292604919,0.34567302,1693.3,1692.0,2.067223]
[1659292604920,11.0,1692.7,1692.0,2.067223]
[1659292605130,11.0,1692.7,1690.9,4.20937604]
[1659292605131,6.17405391,1692.5,1690.9,4.20937604]
[1659292605287,0.03605391,1692.1,1690.9,4.20937604]
[1659292605490,0.23605391,1692.9,1691.3,2.72958189]
[1659292605690,11.82,1692.8,1691.8,0.16394609]
[1659292605999,0.68426919,1692.8,1692.2,0.2953]
[1659292606199,0.68426919,1692.8,1692.7,3.66394609]
[1659292606401,0.68426919,1692.8,1692.3,0.1181]
[1659292606727,0.03605391,1692.7,1691.6,11.6272]
[1659292606980,0.03605391,1692.4,1691.4,1.4771]
[1659292607193,0.03605391,1692.3,1691.4,1.4771]
[1659292607409,0.23605391,1692.4,1691.4,1.4771]
[1659292607546,0.03605391,1692.4,1691.4,1.4771]
[1659292607747,0.03605391,1692.1,1691.4,1.5271]
[1659292608193,0.68426919,1692.8,1691.5,0.03509524]
[1659292608194,0.03605391,1692.5,1691.5,0.03509524]
[1659292608492,0.68426919,1692.8,1691.5,0.38049524]
[1659292608493,0.03605391,1692.3,1691.5,0.38049524]
[1659292608693,0.03605391,1691.9,1691.5,0.03509524]
[1659292608843,0.05,1692.4,1691.5,0.03509524]
[1659292609043,2.89804672,1692.3,1691.5,0.08509524]
[1659292609359,0.03605391,1691.7,1691.4,0.05]
[1659292609563,2.89804672,1691.6,1691.1,0.05]
[1659292609765,0.03605391,1691.3,1690.9,0.05]
[1659292609950,0.03605391,1690.8,1690.6,0.05]
[1659292610275,0.03605391,1690.8,1690.3,1.47818]
[1659292610276,0.05,1691.1,1690.8,0.16394609]
[1659292610487,0.03605391,1691.1,1690.5,0.05]
[1659292610704,0.30961911,1691.1,1690.4,1.477881]
[1659292610906,0.03605391,1691.0,1690.7,1.47769]
[1659292611097,0.23605391,1690.2,1688.4,2.95603]
[1659292611296,14.5,1690.8,1688.3,12.40336]
[1659292611297,0.23605391,1688.6,1688.3,12.40336]
[1659292611495,0.23605391,1688.6,1687.6,8.1815]
[1659292611496,0.2,1688.5,1687.8,1.48008]
[1659292611709,8.0,1688.8,1687.8,1.48008]
[1659292611710,13.179,1688.6,1687.8,1.48008]
[1659292611916,0.05,1688.6,1687.7,0.05]
[1659292612074,0.2,1688.4,1687.7,0.05]
[1659292612275,0.05,1688.5,1687.6,0.05]
[1659292612674,0.05,1688.5,1687.6,8.05]
[1659292613294,0.05,1688.5,1687.8,0.29599]
[1659292613490,0.34471435,1688.5,1687.8,0.29599]
[1659292613692,0.34471435,1688.5,1687.6,7.8]
[1659292613924,0.39471435,1688.5,1687.6,7.8]
[1659292614126,0.39471435,1688.5,1687.6,9.28008]
[1659292614393,0.05,1688.5,1687.6,9.28008]
[1659292614544,0.2,1688.4,1687.0,3.25679]
[1659292614747,6.138,1689.0,1687.7,2.84072267]
[1659292615243,0.2,1689.2,1688.1,2.8133279]
[1659292615465,0.2,1689.0,1688.2,0.05]
[1659292615742,0.55054719,1688.9,1688.2,0.05]
[1659292615905,0.2,1688.4,1688.1,0.05]
[1659292616108,6.088,1688.6,1687.0,3.53889]
[1659292616109,0.2,1688.2,1687.8,0.05]
[1659292616308,0.05,1688.4,1687.5,0.05]
[1659292616509,0.2,1688.2,1687.5,0.05]
[1659292616746,0.2,1688.2,1687.2,1.48044]
[1659292616747,4.0,1687.9,1687.2,1.43044]
[1659292616947,0.05,1688.0,1687.3,2.82320745]
[1659292617116,2.7087,1689.1,1687.3,2.82320745]
[1659292617117,0.05,1688.1,1687.5,1.4802]
[1659292617320,6.338,1688.7,1687.6,8.0]
[1659292617518,6.138,1688.7,1687.6,8.0]
[1659292617727,0.2,1688.7,1687.7,3.0]
[1659292618059,0.4,1689.3,1687.7,3.0]
[1659292618267,6.138,1689.4,1687.7,3.0]
[1659292618268,6.138,1689.4,1687.8,1.77597]
[1659292618473,6.138,1689.3,1687.8,2.3759704]
[1659292618625,0.29605,1689.8,1687.9,11.0]
[1659292618823,0.68426919,1689.7,1688.7,11.0]
[1659292619057,0.38304281,1689.7,1688.8,2.6488029]
[1659292619267,0.38304281,1689.7,1689.1,1.77435]
[1659292619438,14.5,1690.9,1689.2,5.0]
[1659292619439,0.05,1689.9,1689.2,5.0]
[1659292619826,0.05,1690.0,1689.2,5.6]
[1659292620165,7.0,1690.5,1689.2,0.3]
[1659292620319,7.0,1690.5,1688.6,2.95785]
[1659292620320,4.88854719,1690.2,1688.8,3.0]
[1659292620520,4.88854719,1690.0,1688.1,14.05810741]
[1659292620777,8.33854719,1689.4,1688.0,0.5919623]
[1659292620966,8.33854719,1689.4,1687.8,11.307]
[1659292621136,4.88854719,1689.4,1687.8,11.307]
[1659292621325,6.138,1689.9,1688.1,5.00862006]
[1659292621529,6.138,1689.9,1688.4,2.64134636]
[1659292621530,11.841,1689.8,1688.4,2.64134636]
[1659292621729,11.591,1689.8,1688.4,0.2]
[1659292621974,11.591,1689.8,1689.0,0.3]
[1659292622272,11.591,1689.8,1689.1,0.34471435]
[1659292622979,11.591,1689.8,1689.2,0.2]
[1659292623131,15.58907,1691.7,1689.3,0.54471435]
[1659292623335,9.638,1691.1,1690.0,0.05]
[1659292623568,6.138,1690.3,1690.1,2.00289999]
[1659292623726,16.638,1690.2,1689.4,3.0]
[1659292623927,9.638,1690.1,1689.2,3.0]
[1659292624269,7.0,1690.2,1688.8,0.2]
[1659292624422,7.0,1690.2,1688.6,6.29550367]
[1659292624423,7.0,1690.2,1689.1,3.09804672]
[1659292624628,7.0,1690.2,1689.3,0.2]
[1659292624931,7.0,1690.2,1689.1,3.09804672]
[1659292625169,12.43257331,1691.6,1689.6,0.2]
[1659292625369,6.138,1691.5,1689.9,0.2]
[1659292625524,6.138,1691.5,1689.8,0.2]
[1659292625525,6.138,1690.6,1689.8,3.0]
[1659292625733,3.5,1690.9,1689.2,3.3]
[1659292625933,0.92549699,1691.5,1689.4,0.3]
[1659292626132,11.831,1691.4,1689.7,1.67852]
[1659292626375,6.138,1690.9,1689.7,0.3]
[1659292626583,6.49787324,1691.1,1689.8,0.05]
[1659292626740,6.49787324,1691.1,1689.8,0.25]
[1659292626741,0.05,1690.9,1689.8,0.25]
[1659292626941,0.05,1690.9,1690.0,0.5]
[1659292627146,0.05,1690.9,1690.0,0.35]
[1659292627348,0.05,1690.9,1690.0,0.05]
[1659292627682,0.05,1690.9,1690.1,0.2]
[1659292627883,0.05,1690.9,1690.2,0.34471435]
[1659292628038,6.138,1691.0,1690.1,0.05]
[1659292628039,9.638,1690.8,1690.1,0.05]
[1659292628386,0.05,1691.0,1690.0,0.05]
[1659292628387,0.05,1690.9,1690.0,0.05]
[1659292628734,6.138,1690.3,1689.0,3.25774]
[1659292628936,0.05,1690.1,1689.1,0.5916278]
[1659292629136,0.05,1690.0,1689.7,0.2]
[1659292629439,0.05,1690.3,1689.8,0.34471435]
[1659292629645,9.638,1690.3,1689.7,0.1]
[1659292629801,0.05,1690.4,1689.7,0.1]
[1659292630002,6.9,1691.0,1689.7,0.44471435]
[1659292630204,3.35,1691.0,1689.9,0.05]
[1659292630453,6.138,1690.9,1689.9,0.05]
[1659292630598,6.138,1690.9,1690.0,0.2]
[1659292630599,0.05,1690.9,1690.0,0.2]
[1659292630802,0.05,1690.9,1690.0,0.25]
[1659292631100,0.05,1690.9,1690.0,0.05]
[1659292631599,6.138,1690.8,1690.0,0.05]
[1659292631800,6.138,1690.2,1689.9,0.05]
[1659292632038,6.138,1690.2,1689.7,0.1]
[1659292632538,3.35,1690.0,1689.7,0.1]
[1659292632718,7.5,1690.6,1689.7,0.1]
[1659292632719,6.138,1689.9,1689.7,0.1]
[1659292633561,6.138,1690.2,1689.7,0.1]
[1659292633761,6.138,1689.8,1689.7,0.1]
[1659292634832,9.03604672,1689.8,1689.7,0.1]
[1659292635036,9.03604672,1689.8,1689.3,0.05]
[1659292635037,6.138,1689.6,1689.3,0.05]
[1659292635237,6.138,1689.5,1689.0,0.35]
[1659292635429,6.138,1689.5,1688.6,0.2]
[1659292635430,2.89804672,1689.1,1688.6,0.29589]
[1659292635630,9.03604672,1688.7,1687.7,0.2]
[1659292635888,2.89804672,1688.5,1687.8,2.81990666]
[1659292636052,2.94804672,1688.6,1687.8,3.11595666]
[1659292636375,0.05,1688.6,1688.3,0.2]